bitfinex/quotes_ETHUSD_20240711
["timestamp","ask_amount","ask_price","bid_price","bid_amount"]
[1720720923021,8.64871432,3137.6,3137.5,0.21956565]
[1720720923654,3.43914604,3137.6,3137.5,0.21956565]
[1720720923973,1.1044063,3137.6,3137.5,0.21956565]
[1720720924464,1.1044063,3137.6,3137.5,2.53556565]
[1720720926319,2.20836456,3137.6,3137.5,2.53556565]
[1720720926524,1.10418656,3137.6,3137.5,2.53556565]
[1720720926725,3.27238859,3138.1,3138.0,0.21956565]
[1720720926965,14.0380637,3138.1,3138.0,0.21956565]
[1720720927359,14.0380637,3138.1,3137.5,2.53556565]
[1720720927540,14.0380637,3138.1,3137.5,0.21956565]
[1720720927541,0.938,3137.6,3137.5,0.21956565]
[1720720927869,2.04218485,3137.8,3137.5,0.2203885]
[1720720928099,1.10418485,3137.7,3137.5,0.2203885]
[1720720928426,1.488,3137.6,3137.5,0.2203885]
[1720720928628,2.59218485,3137.6,3137.5,0.2203885]
[1720720928954,2.59235318,3137.6,3137.5,0.2203885]
[1720720929162,3.1248888,3137.6,3137.5,0.2203885]
[1720720929376,3.62512588,3137.6,3137.5,0.2203885]
[1720720929730,3.76746864,3137.6,3137.5,0.2203885]
[1720720930058,4.87185113,3137.6,3137.5,0.2203885]
[1720720930234,5.1976913,3137.6,3137.5,0.2203885]
[1720720931547,21.18836375,3137.6,3137.5,0.00082285]
[1720720931827,22.5230433,3137.6,3137.5,0.00082285]
[1720720932063,21.8340253,3137.6,3137.5,0.00082285]
[1720720932268,21.0933963,3137.6,3137.5,0.00082285]
[1720720932762,19.04127216,3137.6,3137.5,0.00082285]
[1720720933063,16.3270663,3137.6,3137.5,0.00082285]
[1720720933225,15.62108853,3137.6,3137.5,0.00082285]
[1720720933430,6.17729679,3137.6,3137.5,0.2203885]
[1720720933626,5.85145662,3137.6,3137.5,0.28304878]
[1720720933853,2.85145662,3137.6,3137.5,0.28304878]
[1720720936532,0.50023708,3137.6,3137.5,0.28304878]
[1720720936764,1.60452058,3137.6,3137.5,0.28304878]
[1720720936966,0.50023708,3137.6,3137.5,0.28304878]
[1720720937673,2.85160292,3137.6,3137.5,0.28304878]
[1720720939263,2.85133283,3137.6,3137.5,0.28304878]
[1720720939881,6.74328083,3137.6,3137.5,0.28304878]
[1720720940178,6.61439847,3137.6,3137.5,0.28304878]
[1720720940747,6.61439847,3137.6,3137.5,0.06348313]
[1720720940748,7.90412484,3137.6,3137.5,0.06348313]
[1720720941074,6.55132084,3137.6,3137.5,0.2203885]
[1720720943141,8.88565237,3137.6,3137.5,0.2203885]
[1720720943337,4.19996345,3137.6,3137.5,0.2203885]
[1720720943541,8.88738794,3137.6,3137.5,0.2203885]
[1720720943753,4.14144302,3137.6,3137.5,0.2203885]
[1720720944163,4.14144302,3137.6,3137.5,0.28304972]
[1720720944368,2.85171665,3137.6,3137.5,0.28304972]
[1720720945084,2.8518849,3137.6,3137.5,0.28304972]
[1720720946847,0.50023708,3137.6,3137.5,0.28304972]
[1720720947296,1.60455561,3137.6,3137.5,0.28304972]
[1720720947495,3.4682744,3137.6,3137.5,0.28304972]
[1720720948410,4.04878445,3137.6,3137.5,0.28304972]
[1720720948559,3.4682744,3137.6,3137.5,2.58304972]
[1720720949498,3.46842519,3137.6,3137.5,2.58304972]
[1720720950503,3.46844119,3137.6,3137.5,2.58304972]
[1720720953905,3.46831191,3137.6,3137.5,2.58304972]
[1720720954702,3.46831191,3137.6,3137.5,5.77029972]
[1720720955072,3.46831191,3137.6,3137.5,8.95754972]
[1720720955277,2.22076568,3137.6,3137.5,8.95754972]
[1720720955477,1.7205286,3137.6,3137.5,8.95754972]
[1720720957274,0.50008731,3138.3,3138.2,0.21956565]
[1720720957475,1.60407139,3138.3,3138.2,0.21956565]
[1720720957676,0.50008731,3138.3,3138.2,0.28170167]
[1720720957906,1.6040715,3138.3,3138.2,0.28170167]
[1720720958109,3.46879479,3138.3,3138.2,0.28170167]
[1720720959273,2.22071601,3138.3,3138.2,5.87024167]
[1720720959716,2.22071601,3138.3,3138.2,9.05678167]
[1720720960218,2.22049062,3138.3,3138.2,9.05678167]
[1720720960512,0.50008731,3138.3,3138.2,9.05678167]
[1720720961217,0.50008731,3138.3,3138.2,12.05678167]
[1720720961522,0.32584559,3139.5,3139.4,0.21956565]
[1720720961706,3.7933122,3139.5,3139.4,0.21956565]
[1720720961901,2.96879803,3139.5,3139.4,0.21956565]
[1720720962124,3.46873243,3139.5,3139.4,0.28108322]
[1720720962645,3.46873243,3139.5,3139.4,0.21956565]
[1720720962936,3.46873243,3139.5,3139.4,0.28108322]
[1720720964125,3.46864311,3139.5,3139.4,0.28108322]
[1720720964432,2.22020104,3139.5,3139.4,0.28108322]
[1720720967514,1.60351034,3139.5,3139.4,0.28108322]
[1720720967725,4.89743649,3139.5,3139.4,0.28108322]
[1720720968003,4.89747263,3139.5,3139.4,0.28108322]
[1720720968407,9.55642854,3139.5,3139.4,0.06151757]
[1720720968717,9.55642854,3139.5,3138.7,7.69956565]
[1720720968718,10.10642854,3139.5,3138.8,0.21956565]
[1720720968912,2.96856362,3139.4,3139.2,0.21956565]
[1720720969119,8.51931617,3139.3,3138.9,0.06146378]
[1720720969345,0.74291955,3139.3,3139.2,0.21956565]
[1720720969501,3.71179272,3139.3,3139.2,0.21956565]
[1720720969703,7.27122857,3139.3,3138.8,0.21956565]
[1720720970029,3.51886621,3139.2,3138.9,0.06146378]
[1720720970220,2.96886621,3139.1,3138.9,0.06146378]
[1720720970539,1.37453788,3139.2,3139.0,0.21956565]
[1720720970767,5.24491839,3139.1,3139.0,0.21956565]
[1720720970948,5.79495587,3139.1,3139.0,0.21956565]
[1720720971803,2.4596,3139.0,3138.8,0.21956565]
[1720720972057,1.72056613,3138.9,3138.8,0.21956565]
[1720720972235,11.10756721,3138.9,3138.8,0.21956565]
[1720720972439,12.51928393,3138.9,3138.8,0.21956565]
[1720720973159,11.35800593,3138.9,3138.8,0.21956565]
[1720720973663,11.35800593,3138.9,3138.6,0.21956565]
[1720720973828,10.65262121,3138.8,3138.3,0.21956565]
[1720720974034,2.4872,3138.6,3138.1,7.48]
[1720720974223,10.81026813,3138.5,3138.1,7.48]
[1720720974558,12.237992,3138.4,3138.2,0.21956565]
[1720720974858,4.74097345,3138.3,3138.2,0.21956565]
[1720720975155,5.2700708,3138.3,3138.2,0.21956565]
[1720720975817,1.72088445,3138.3,3138.2,0.21956565]
[1720720976418,1.72088445,3138.3,3138.1,7.48]
[1720720976419,1.10409203,3138.3,3138.1,7.48]
[1720720976640,1.10409203,3138.5,3138.2,0.21956565]
[1720720976852,6.37207354,3138.4,3138.2,0.21956565]
[1720720977070,4.74835343,3138.3,3138.2,0.21956565]
[1720720977825,4.74843902,3138.3,3138.2,0.21956565]
[1720720978131,5.3476,3138.3,3138.2,0.21956565]
[1720720978323,8.85271595,3138.3,3138.1,7.48]
[1720720978546,8.85271595,3138.3,3138.0,0.21956565]
[1720720978547,6.33748161,3138.2,3138.0,0.21956565]
[1720720978723,5.30048161,3138.1,3138.0,0.21956565]
[1720720979374,4.61054261,3138.1,3138.0,0.21956565]
[1720720980060,5.35711287,3138.1,3138.0,0.21956565]
[1720720980251,6.60618349,3138.1,3137.6,7.69956565]
[1720720980565,1.72136996,3138.0,3137.6,7.48]
[1720720980871,1.10413214,3137.9,3137.6,7.48]
[1720720981065,1.72132834,3137.8,3137.6,7.69956565]
[1720720981373,1.72132834,3137.7,3137.6,7.69956565]
[1720720983061,1.72132834,3137.7,3137.6,7.48]
[1720720983267,1.72132834,3137.7,3137.6,7.69956565]
[1720720983829,0.6169333,3137.7,3137.6,7.69956565]
[1720720984263,1.72110193,3137.7,3137.6,7.69956565]
[1720720984593,1.72110193,3137.7,3137.6,0.21956565]
[1720720985289,1.72110193,3137.7,3137.6,2.51026565]
[1720720986992,1.72110193,3137.7,3137.6,2.57061289]
[1720720987196,0.32564757,3138.3,3137.6,2.57061289]
[1720720987490,2.97032674,3138.2,3137.7,0.938]
[1720720987690,2.97051,3138.1,3137.8,0.06026523]
[1720720987877,1.72136973,3138.0,3137.9,0.21956565]
[1720720988079,1.72136973,3138.0,3137.9,0.27978987]
[1720720988975,0.50014654,3138.0,3137.9,0.27978987]
[1720720989300,1.11734012,3138.0,3137.9,0.27978987]
[1720720989487,2.22148917,3138.0,3137.9,0.27978987]
[1720720989859,2.22148917,3138.0,3137.9,0.21956565]
[1720720990055,4.73073809,3138.0,3137.9,0.27983441]
[1720720990380,9.30760184,3138.0,3137.9,0.27983441]
[1720720990757,8.05866728,3138.0,3137.9,0.27983441]
[1720720990998,9.30752159,3138.0,3137.9,0.27983441]
[1720720992501,9.30752159,3138.0,3137.9,0.06026876]
[1720720992685,9.85752159,3138.0,3137.9,0.06026876]
[1720720993011,9.85752159,3138.0,3137.7,0.21956565]
[1720720993161,10.99239229,3137.9,3137.7,0.21956565]
[1720720993362,1.62955216,3137.9,3137.8,0.06030976]
[1720720993610,3.51968811,3137.9,3137.8,0.06030976]
[1720720993775,3.84554702,3137.9,3137.7,0.21956565]
[1720720993973,2.96968811,3137.8,3137.7,0.21956565]
[1720720994188,3.45278927,3137.8,3137.7,0.21956565]
[1720720994496,5.31816853,3137.8,3137.7,0.21956565]
[1720720994699,6.23851082,3137.8,3137.7,0.21956565]
[1720720995505,3.88997682,3137.8,3137.7,0.21956565]
[1720720995862,2.96963453,3137.8,3137.7,0.21956565]
[1720720996107,1.72116034,3137.8,3137.7,0.21956565]
[1720720997208,1.72116034,3137.8,3137.7,1.15756565]
[1720720997671,0.50014654,3138.0,3137.7,7.53164565]
[1720720997877,1.72104952,3137.9,3137.7,7.53164565]
[1720720998097,1.72104952,3137.8,3137.7,4.34460565]
[1720720998401,0.50014654,3138.0,3137.9,0.21956565]
[1720720998696,1.11705198,3138.0,3137.9,2.61006565]
[1720720998905,2.22105343,3138.0,3137.9,2.61006565]
[1720720999100,2.22105343,3138.0,3137.9,3.54806565]
[1720720999884,2.22105343,3138.0,3137.9,6.73490565]
[1720721000119,1.60414799,3138.0,3137.9,6.73490565]
[1720721000328,1.60414799,3138.0,3137.9,9.92174565]
[1720721000853,1.60398024,3138.0,3137.9,9.92174565]
[1720721001128,0.50014654,3138.0,3137.9,9.92174565]
[1720721001282,1.60399601,3138.0,3137.9,9.92174565]
[1720721002117,1.60399601,3138.0,3137.9,9.98192189]
[1720721002628,1.60399601,3138.0,3137.9,9.04392189]
[1720721004627,1.6040074,3138.0,3137.9,9.04392189]
[1720721008106,1.60401333,3138.0,3137.9,9.04392189]
[1720721008312,1.60401447,3138.0,3137.9,9.04392189]
[1720721008537,1.60401459,3138.0,3137.9,9.04392189]
[1720721009333,2.22083014,3138.0,3137.9,9.04392189]
[1720721009664,1.60401459,3138.0,3137.9,9.04392189]
[1720721010010,2.22072589,3138.0,3137.9,9.04392189]
[1720721011083,2.22072997,3138.0,3137.9,9.04392189]
[1720721011444,0.50014654,3138.0,3137.9,9.04392189]
[1720721011792,1.11684829,3138.0,3137.9,9.04392189]
[1720721011950,2.22071158,3138.0,3137.9,9.04392189]
[1720721013866,2.22071158,3138.0,3137.9,12.23076189]
[1720721013867,0.50014654,3138.0,3137.9,12.23076189]
[1720721016287,0.50014654,3138.0,3137.9,15.23076189]
[1720721019617,0.50014654,3138.0,3137.9,18.41760189]
[1720721019906,0.27660435,3138.0,3137.9,20.46760189]
[1720721020059,2.4262,3139.6,3137.9,20.46760189]
[1720721020264,2.4262,3139.6,3139.5,0.21956565]
[1720721020565,5.3935388,3139.6,3139.5,0.27750117]
[1720721020760,8.89347881,3139.6,3139.5,0.27750117]
[1720721021073,5.89347881,3139.6,3139.5,0.27750117]
[1720721021474,5.89345231,3139.6,3139.5,0.27750117]
[1720721021863,2.92614001,3139.6,3139.5,0.27750117]
[1720721022062,5.89359617,3139.6,3139.5,0.27750117]
[1720721023366,4.64591976,3139.6,3139.5,0.27750117]
[1720721023885,4.64591976,3139.6,3139.5,3.46272117]
[1720721023886,2.21971976,3139.6,3139.5,3.46272117]
[1720721024558,2.21971976,3139.6,3139.5,4.39972117]
[1720721025284,0.49994001,3139.6,3139.5,4.39972117]
[1720721025489,1.60331876,3139.6,3139.5,4.39972117]
[1720721025667,2.21964608,3139.6,3139.5,4.39972117]
[1720721026272,1.60331876,3139.6,3139.5,4.18015552]
[1720721027714,1.60331876,3139.6,3139.5,4.39972117]
[1720721028280,1.60331876,3139.6,3139.5,4.18015552]
[1720721028829,0.49994001,3139.6,3139.5,4.18015552]
[1720721028990,0.49994001,3139.6,3139.5,0.99493552]
[1720721029341,2.21984149,3139.6,3139.5,0.05793552]
[1720721029474,2.66972564,3139.6,3139.5,0.27750117]
[1720721030227,5.10242564,3139.6,3139.5,0.27750117]
[1720721030388,10.07480549,3139.6,3139.5,0.27750117]
[1720721030589,9.27480549,3139.6,3139.5,0.27750117]
[1720721031678,9.27519456,3139.6,3139.5,0.27750117]
[1720721032074,7.55490401,3139.6,3139.5,0.27750117]
[1720721032279,4.65293642,3139.6,3139.5,0.27750117]
[1720721033381,5.75522706,3139.6,3139.5,0.27750117]
[1720721034532,4.65293642,3139.6,3139.5,0.27750117]
[1720721035523,2.93264001,3139.6,3139.5,0.27750117]
[1720721035697,4.65283781,3139.6,3139.5,0.27750117]
[1720721036514,2.22013781,3139.6,3139.5,0.27750117]
[1720721037102,2.22013781,3139.6,3139.5,3.46272117]
[1720721038440,1.60347931,3139.6,3139.5,9.10624117]
[1720721039208,1.60328265,3139.6,3139.5,9.10624117]
[1720721039609,1.60326195,3139.6,3139.5,9.10624117]
[1720721041623,0.49994001,3139.6,3139.5,9.10624117]
[1720721042445,0.49994001,3139.6,3139.5,12.29146117]
[1720721042764,0.32584945,3140.8,3140.7,0.21956565]
[1720721042982,3.29315203,3140.8,3140.7,0.21956565]
[1720721043285,2.04526276,3140.8,3140.7,0.27663601]
[1720721043423,2.21915466,3140.8,3140.7,0.27663601]
[1720721044063,3.46702847,3140.8,3140.7,0.27663601]
[1720721044263,2.44107013,3140.8,3140.7,0.27663601]
[1720721045060,2.44099396,3140.8,3140.7,0.27663601]
[1720721045363,2.21907849,3140.8,3140.7,0.27663601]
[1720721048354,1.60285029,3140.8,3140.7,0.27663601]
[1720721048534,2.2191021,3140.8,3140.7,0.27663601]
[1720721049462,2.21920732,3140.8,3140.7,0.27663601]
[1720721051836,1.6027852,3140.8,3140.7,0.27663601]
[1720721052044,2.2189753,3140.8,3140.7,0.27663601]
[1720721052262,1.6027852,3140.8,3140.7,0.27663601]
[1720721052455,2.21898605,3140.8,3140.7,0.27663601]
[1720721053453,1.6027852,3140.8,3140.7,0.27663601]
[1720721054267,1.6027852,3140.8,3140.7,3.46063601]
[1720721054575,1.6027852,3140.8,3140.7,0.27663601]
[1720721054776,1.60271777,3140.8,3140.7,0.27663601]
[1720721055191,0.49974135,3140.8,3140.7,0.27663601]
[1720721055393,1.60273585,3140.8,3140.7,0.27663601]
[1720721055878,2.21889922,3140.8,3140.7,0.27663601]
[1720721058516,2.67479914,3140.8,3140.7,0.05707036]
[1720721058730,4.89609429,3140.8,3140.7,0.05707036]
[1720721059012,6.7604126,3140.8,3140.7,0.05492743]
[1720721059316,6.7604126,3140.8,3140.4,0.21956565]
[1720721059614,11.70133816,3140.7,3140.4,0.21956565]
[1720721059789,10.38142713,3140.6,3140.4,0.21956565]
[1720721060107,7.79005416,3140.5,3140.4,0.21956565]
[1720721060612,6.64005416,3140.5,3140.4,0.21956565]
[1720721060970,8.90225416,3140.5,3140.4,0.21956565]
[1720721061188,8.90225416,3140.5,3140.2,0.21956565]
[1720721061392,9.72085416,3140.4,3140.1,7.48]
[1720721061726,11.13876816,3140.3,3140.1,7.48]
[1720721061942,0.42415026,3140.4,3140.1,7.48]
[1720721061943,8.66196816,3140.2,3140.1,7.48]
[1720721062086,5.693914,3140.2,3140.1,7.48]
[1720721062283,5.26325703,3140.2,3140.1,7.48]
[1720721062541,20.17602986,3140.2,3140.1,7.48]
[1720721062795,18.88980347,3140.2,3140.1,7.48]
[1720721063218,17.83153221,3140.2,3140.1,7.48]
[1720721063431,20.16449036,3140.2,3140.1,7.48]
[1720721063584,15.49179321,3140.2,3140.1,7.48]
[1720721063786,13.97206038,3140.2,3140.1,7.48]
[1720721064016,5.96858338,3140.2,3140.1,7.48]
[1720721064217,2.96858338,3140.2,3140.1,7.48]
[1720721064924,2.96858338,3140.2,3140.0,0.21956565]
[1720721065134,2.2588,3140.6,3140.0,0.21956565]
[1720721065135,1.72019057,3140.1,3140.0,0.21956565]
[1720721065290,2.96835143,3140.1,3140.0,0.21956565]
[1720721065620,2.96798934,3140.1,3140.0,0.21956565]
[1720721067006,1.71983008,3140.1,3140.0,0.21956565]
[1720721068740,2.33389176,3140.7,3140.0,0.21956565]
[1720721068936,1.1033267,3140.1,3140.0,0.21956565]
[1720721069146,6.16032692,3140.8,3140.4,0.21956565]
[1720721069293,6.16032692,3140.8,3140.6,0.21956565]
[1720721069294,2.96781376,3140.7,3140.6,0.21956565]
[1720721069498,5.96781376,3140.7,3140.6,0.21956565]
[1720721070124,5.96781376,3140.7,3140.6,0.27479672]
[1720721070836,2.96781376,3140.7,3140.6,0.27479672]
[1720721071723,2.96781376,3140.7,3140.6,0.05523107]
[1720721071724,17.28460499,3140.7,3140.6,0.05523107]
[1720721072020,17.70875525,3140.7,3140.1,7.48]
[1720721072223,18.23918926,3140.6,3140.1,7.48]
[1720721072464,2.33483366,3140.4,3140.1,7.69956565]
[1720721072758,6.3623883,3140.3,3140.1,7.69956565]
[1720721072912,7.07360344,3140.2,3140.1,7.69956565]
[1720721074052,6.51533244,3140.2,3140.1,7.69956565]
[1720721074218,5.27633244,3140.2,3140.1,7.69956565]
[1720721074420,5.00326144,3140.2,3140.1,7.69956565]
[1720721074742,2.96826144,3140.2,3140.1,7.69956565]
[1720721075058,2.235149,3140.2,3140.1,7.69956565]
[1720721075279,2.96815298,3140.2,3140.1,7.69956565]
[1720721075714,3.0,3140.6,3140.4,0.21956565]
[1720721075917,6.03067186,3140.5,3140.2,0.21956565]
[1720721076112,9.31540286,3140.4,3140.2,0.21956565]
[1720721076307,8.75618586,3140.3,3140.2,0.21956565]
[1720721076924,8.75618586,3140.3,3140.2,0.27091317]
[1720721079238,5.788393,3140.3,3140.2,0.27091317]
[1720721079436,2.96817866,3140.3,3140.2,0.27091317]
[1720721079664,5.24417866,3140.3,3140.2,0.27091317]
[1720721082757,4.61198796,3140.3,3140.2,0.27091317]
[1720721082941,7.5814018,3140.3,3140.2,0.27091317]
[1720721083321,7.58128628,3140.3,3140.2,0.27091317]
[1720721083653,2.96820111,3140.3,3140.2,0.27091317]
[1720721084263,5.39746211,3140.3,3140.2,0.27091317]
[1720721084464,8.50800201,3140.3,3140.2,0.27091317]
[1720721084620,8.06071548,3140.3,3140.2,0.27091317]
[1720721084822,3.29436931,3140.3,3140.2,0.27091317]
[1720721085063,2.96820111,3140.3,3140.2,0.27091317]
[1720721085660,2.96813716,3140.3,3140.2,0.27091317]
[1720721086266,5.3368679,3140.6,3140.5,0.21956565]
[1720721086575,8.30466837,3140.6,3140.5,0.21956565]
[1720721086931,11.50681652,3140.6,3140.5,0.21956565]
[1720721087272,10.90681652,3140.6,3140.5,0.21956565]
[1720721088758,3.29394862,3140.6,3140.5,0.27092977]
[1720721088960,3.46757391,3140.6,3140.5,0.27092977]
[1720721089144,3.46757391,3140.6,3140.5,0.05136412]
[1720721089543,0.49977344,3140.6,3140.3,2.4102]
[1720721089747,0.49977344,3140.6,3140.5,0.05133692]
[1720721090046,1.11607995,3140.6,3140.5,0.05133692]
[1720721090380,1.60294005,3140.6,3140.5,0.21956565]
[1720721090536,3.46717445,3140.6,3140.5,0.21956565]
[1720721090848,3.46717445,3140.6,3140.5,0.27088047]
[1720721091876,3.46717445,3140.6,3140.5,3.45508047]
[1720721092085,2.21924656,3140.6,3140.5,3.45508047]
[1720721093151,2.21904307,3140.6,3140.5,3.45508047]
[1720721093670,2.2189969,3140.6,3140.5,3.45508047]
[1720721096071,2.21898403,3140.6,3140.5,0.27088047]
[1720721096458,0.49977344,3140.6,3140.5,0.27088047]
[1720721096660,1.60283095,3140.6,3140.5,0.27088047]
[1720721096861,2.21903416,3140.6,3140.5,0.27088047]
[1720721097416,3.46683462,3140.6,3140.5,0.27088047]
[1720721099967,0.49977344,3140.6,3140.5,0.27088047]
[1720721100384,1.60293312,3140.6,3140.5,0.27088047]
[1720721100584,3.46715203,3140.6,3140.5,0.27088047]
[1720721102381,3.46715203,3140.6,3140.5,0.21956565]
[1720721102702,3.46730225,3140.6,3140.5,0.21956565]
[1720721103016,3.46730225,3140.6,3140.5,0.27075977]
[1720721103017,0.49977344,3140.6,3140.5,0.27075977]
[1720721103417,2.85086538,3140.6,3140.5,0.27075977]
[1720721105712,2.85086195,3140.6,3140.5,0.27075977]
[1720721105925,0.49977344,3140.6,3140.5,0.27075977]
[1720721106084,2.85091627,3140.6,3140.5,0.27075977]
[1720721106999,2.85091627,3140.6,3140.5,0.05119412]
[1720721107219,3.1360079,3140.6,3140.5,0.27075977]
[1720721107382,11.78774481,3140.6,3140.5,0.21956565]
[1720721107581,8.1080599,3140.6,3140.5,0.27075637]
[1720721107807,7.3080599,3140.6,3140.5,0.27075637]
[1720721108023,7.3080599,3140.6,3140.5,0.21956565]
[1720721108231,9.64569181,3140.6,3140.0,0.21956565]
[1720721108438,5.90056392,3140.5,3140.2,0.21956565]
[1720721108591,3.58558674,3140.4,3140.2,0.21956565]
[1720721108788,2.33763191,3140.4,3140.3,0.05128109]
[1720721109094,5.15524997,3140.4,3140.2,0.21956565]
[1720721109298,2.35154396,3140.3,3140.2,0.21956565]
[1720721109503,1.11121434,3140.6,3140.4,0.21956565]
[1720721109701,9.33673608,3140.5,3140.4,0.21956565]
[1720721109916,6.99807937,3140.5,3140.4,0.21956565]
[1720721110083,9.33665261,3140.5,3140.4,0.21956565]
[1720721110915,6.99807937,3140.5,3140.4,0.21956565]
[1720721111115,8.29008607,3140.5,3140.1,0.21956565]
[1720721111433,2.33873352,3140.3,3140.1,0.21956565]
[1720721111609,10.46596937,3140.4,3140.2,0.05136623]
[1720721111610,2.33873352,3140.4,3140.2,0.05136623]
[1720721111818,2.33873352,3140.5,3140.4,0.21956565]
[1720721112017,9.01228471,3140.5,3140.4,0.21956565]
[1720721112386,4.69015271,3140.5,3140.4,0.21956565]
[1720721112592,2.35141919,3140.5,3140.4,0.21956565]
[1720721112793,3.16485623,3140.6,3140.4,0.27085]
[1720721112794,0.49977344,3140.6,3140.4,0.27085]
[1720721113039,2.35125978,3140.5,3140.4,0.27085]
[1720721113336,2.35122002,3140.5,3140.4,0.27085]
[1720721114322,7.45165975,3140.5,3140.4,0.27085]
[1720721114504,7.45165975,3140.5,3140.4,0.21956565]
[1720721115640,2.33126785,3140.5,3140.4,0.21956565]
[1720721116256,0.49977344,3140.6,3140.4,0.2708602]
[1720721116552,1.10325079,3140.5,3140.4,0.21956565]
[1720721117438,1.10325079,3140.5,3140.4,0.26958978]
[1720721118824,1.10325079,3140.5,3140.4,2.73878978]
[1720721119720,1.10309635,3140.5,3140.4,2.73878978]
[1720721123016,0.49977344,3140.6,3140.4,2.73878978]
[1720721123241,1.10312562,3140.5,3140.4,0.26958978]
[1720721123621,1.10312633,3140.5,3140.4,0.26958978]
[1720721126646,1.10311059,3140.5,3140.4,0.26958978]
[1720721126822,1.10311059,3140.5,3140.4,3.45388978]
[1720721129250,2.34571546,3140.5,3140.4,3.45388978]
[1720721129980,1.10308448,3140.5,3140.4,3.45388978]
[1720721130142,2.34572492,3140.5,3140.4,3.45388978]
[1720721130344,2.34572492,3140.5,3140.4,0.05002413]
[1720721130671,2.34572492,3140.5,3140.4,0.0499241]
[1720721130869,2.34572492,3140.5,3140.1,8.68801]
[1720721131079,2.34572492,3140.4,3140.1,8.68801]
[1720721131370,2.34572492,3140.3,3140.1,5.50345]
[1720721131589,0.49977344,3140.6,3140.1,5.50345]
[1720721131590,2.34572492,3140.2,3140.1,5.50345]
[1720721131734,1.10308448,3140.2,3140.1,5.72301565]
[1720721131942,1.10308448,3140.5,3140.4,0.21956565]
[1720721132279,2.34544833,3140.5,3140.4,0.21956565]
[1720721133179,2.34544833,3140.5,3140.4,3.40386565]
[1720721133476,0.49977344,3140.6,3140.4,3.40386565]
[1720721133647,1.10304744,3140.5,3140.4,8.96926565]
[1720721133849,0.49977344,3140.6,3140.5,3.1842]
[1720721134336,1.6027459,3140.6,3140.5,3.1842]
[1720721134541,2.84525659,3140.6,3140.5,6.3684]
[1720721134740,1.6027459,3140.6,3140.5,8.6651]
[1720721136866,0.49977344,3140.6,3140.5,8.6651]
[1720721137060,0.49977344,3140.6,3140.5,5.4809]
[1720721137261,1.60267956,3140.6,3140.5,3.1842]
[1720721139678,1.60267956,3140.6,3140.5,3.28359195]
[1720721139864,0.49977344,3140.6,3140.5,8.75569195]
[1720721140077,0.49977344,3140.6,3140.5,11.00469195]
[1720721140860,0.49977344,3140.6,3140.5,21.87309195]
[1720721141089,0.49977344,3140.6,3140.5,22.42309195]
[1720721141290,0.49977344,3140.6,3140.5,20.92309195]
[1720721141477,0.49977344,3140.6,3140.5,22.42309195]
[1720721141949,0.49977344,3140.6,3140.5,20.92309195]
[1720721144092,0.49977344,3140.6,3140.5,17.4084576]
[1720721144455,0.49977344,3140.6,3140.5,17.18889195]
[1720721144649,0.49977344,3140.6,3140.5,17.4084576]
[1720721156694,0.49977344,3140.6,3140.5,22.0926576]
[1720721157000,0.49977344,3140.6,3140.5,20.5926576]
[1720721157464,0.49977344,3140.6,3140.5,21.1426576]
[1720721158695,0.49977344,3140.6,3140.5,19.8296576]
[1720721163510,0.49977344,3140.6,3140.5,19.80365273]
[1720721165722,0.49977344,3140.6,3140.5,12.84555273]
[1720721165892,0.49977344,3140.6,3140.5,13.78155273]
[1720721169496,1.60258886,3140.6,3140.5,13.78155273]
[1720721169698,0.49977344,3140.6,3140.5,13.78155273]
[1720721170091,1.60258706,3140.6,3140.5,13.78155273]
[1720721170317,0.49977344,3140.6,3140.5,13.78155273]
[1720721171128,0.49977344,3140.6,3140.5,16.96575273]
[1720721171292,0.49977344,3140.6,3140.5,17.51575273]
[1720721174955,0.49977344,3140.6,3140.5,14.33155273]
[1720721175128,0.49977344,3140.6,3140.5,12.84555273]
[1720721175455,1.60256481,3140.6,3140.5,13.78155273]
[1720721176614,1.60256481,3140.6,3140.5,12.84555273]
[1720721176810,1.60256481,3140.6,3140.5,13.78155273]
[1720721177015,1.60260294,3140.6,3140.5,13.78155273]
[1720721177447,2.20303807,3140.6,3140.5,13.78155273]
[1720721177649,0.49977344,3140.6,3140.5,13.78155273]
[1720721177846,1.60258544,3140.6,3140.5,13.78155273]
[1720721178048,0.49977344,3140.6,3140.5,13.78155273]
[1720721178750,1.6025608,3140.6,3140.5,13.78155273]
[1720721178915,0.49977344,3140.6,3140.5,13.78155273]
[1720721180437,2.20294969,3140.6,3140.5,13.78155273]
[1720721181170,1.10016594,3140.6,3140.5,13.78155273]
[1720721181829,2.20295718,3140.6,3140.5,13.78155273]
[1720721184765,2.20295718,3140.6,3140.5,9.66135273]
[1720721184766,2.20301401,3140.6,3140.5,9.66135273]
[1720721184973,2.20301401,3140.6,3140.5,0.07338708]
[1720721185129,3.07977484,3140.6,3140.5,0.29295273]
[1720721185334,4.78342237,3140.6,3140.5,0.29295273]
[1720721186128,4.56312097,3140.6,3140.5,0.29295273]
[1720721187576,4.56318646,3140.6,3140.5,3.47715273]
[1720721188029,4.5630274,3140.6,3140.5,3.47715273]
[1720721190667,4.5630274,3140.6,3140.5,6.66135273]
[1720721190969,2.2033274,3140.6,3140.5,6.66135273]
[1720721191468,0.49977344,3140.6,3140.5,9.66135273]
[1720721191971,1.60265911,3140.6,3140.5,9.66135273]
[1720721192179,1.60265911,3140.6,3140.5,12.84555273]
[1720721192377,2.4278,3141.1,3140.5,6.47715273]
[1720721192565,2.4278,3141.1,3141.0,3.40325565]
[1720721192747,3.5306799,3141.1,3141.0,3.40325565]
[1720721192932,3.5306799,3141.1,3141.0,4.40774366]
[1720721193371,3.5306799,3141.1,3141.0,3.47174366]
[1720721194864,2.4278,3141.1,3141.0,3.47174366]
[1720721195051,3.53065256,3141.1,3141.0,3.47174366]
[1720721195255,2.4278,3141.1,3141.0,3.47174366]
[1720721195579,3.53065846,3141.1,3141.0,3.47174366]
[1720721196975,3.53065846,3141.1,3141.0,4.40774366]
[1720721198251,2.4278,3141.1,3141.0,4.40774366]
[1720721198589,3.53064911,3141.1,3141.0,4.40774366]
[1720721201887,2.83786544,3141.7,3141.6,0.21956565]
[1720721202098,1.60250047,3141.7,3141.6,0.21956565]
[1720721202494,3.89600047,3141.7,3141.6,0.28784061]
[1720721205402,2.79314996,3141.7,3141.6,0.28784061]
[1720721205608,3.89592324,3141.7,3141.6,0.28784061]
[1720721205901,3.89594699,3141.7,3141.6,0.28784061]
[1720721208779,2.79314996,3141.7,3141.6,0.28784061]
[1720721208991,3.89593846,3141.7,3141.6,0.28784061]
[1720721211512,3.84593846,3141.7,3141.6,0.28784061]
[1720721212428,3.84591165,3141.7,3141.6,0.28784061]
[1720721214528,4.50418357,3141.7,3141.6,0.28784061]
[1720721215715,3.40142188,3141.7,3141.6,0.28784061]
[1720721215927,3.84597241,3141.7,3141.6,0.28784061]
[1720721216230,2.74314996,3141.7,3141.6,0.28784061]
[1720721216409,3.84598138,3141.7,3141.6,0.28784061]
[1720721218737,3.84594582,3141.7,3141.6,0.28784061]
[1720721219316,3.84596442,3141.7,3141.6,0.28784061]